[Event "Menorca Open-A 2022"]
[Site "Menorca"]
[Date "2022.04.24"]
[Round "7.2"]
[White "Gukesh D"]
[Black "Adhiban, B.."]
[Result "1-0"]
[ECO "E94"]
[WhiteElo "2637"]
[BlackElo "2633"]
[Annotator "TA"]
[PlyCount "105"]
[EventDate "2022.04.20"]
[EventType "swiss"]
[EventCountry "ESP"]
[SourceTitle "playchess.com"]
[Source "ChessBase"]
[SourceQuality "1"]
[TimeControl "5400+30"]

{[%evp 12,105,47,27,43,39,52,47,38,32,43,18,34,36,33,5,66,43,43,48,40,29,22,31,38,32,63,60,83,77,86,45,61,52,84,80,104,86,98,91,84,93,102,121,306,257,254,243,252,241,241,211,251,243,292,262,268,195,187,161,160,157,257,257,250,250,259,254,266,266,266,266,283,283,283,283,372,370,369,371,444,439,462,460,551,530,555,510,557,537,503,468,686,668,569,466]} 1. d4 {[%emt 0:00:53]} Nf6 {[%emt 0:01:30]} 2. c4 {[%emt 0:01:00]} g6 {[%emt 0:00:17]} 3. Nc3 {[%emt 0:00:29]} Bg7 {[%emt 0:00:05]} 4. e4 {[%emt 0:00:11]} d6 {[%emt 0:00:08]} 5. Nf3 {[%emt 0:00:56]} O-O {[%emt 0:00:17]} 6. Be2 {[%emt 0:00:08]} e5 {[%emt 0:00:20]} 7. O-O {[%emt 0:00:11]} h6 {[%emt 0:00:33] E94: King's Indian: Classical: 6 Be2 e5 7 0-0: Various Black 7th moves.} 8. Re1 {[%emt 0:05:28] [#]} Qe7 $146 {[%emt 0:00:09]} ({Predecessor:} 8... Nbd7 9. Bf1 Re8 10. Rb1 a5 11. b3 b6 12. d5 Nh7 13. g3 Nc5 14. a3 a4 15. b4 Nb3 16. Be3 Bd7 17. Nd2 f5 18. Nxb3 axb3 19. Rxb3 {1-0 (44) Navara,D (2697)-Caruana,F (2792) Baku 2021}) 9. Bf1 {[%emt 0:05:09]} exd4 {[%emt 0:00:07] White is slightly better.} 10. Nxd4 {[%emt 0:00:57]} Nc6 {[%emt 0:00:03]} 11. f3 {[%emt 0:05:14]} Nxd4 {[%emt 0:00:05]} 12. Qxd4 {[%emt 0:00:07]} Nd7 {[%emt 0:00:03]} 13. Qf2 {[%emt 0:01:03]} Ne5 {[%emt 0:02:46]} (13... Bxc3 $11 14. bxc3 g5) 14. Be3 {[%emt 0:03:58]} (14. Nd5 $5 {[%cal Rd5e7]} Qd8 15. Be3 $11) 14... Be6 {[%emt 0:14:38]} 15. Nd5 {[%emt 0:00:38]} Qd8 {[%emt 0:13:43]} 16. b3 {[%emt 0:00:52]} g5 {[%emt 0:00:32]} 17. Rad1 {[%emt 0:02:42]} ({Avoid the trap} 17. Bxa7 $2 Bxd5 18. exd5 (18. cxd5 $2 b6 $19) 18... b6 19. Bxb6 (19. f4 $2 Ng4 $19) 19... cxb6 $19) 17... c6 {[%emt 0:04:59]} 18. Nb4 {[%emt 0:00:16][%cal Oe3c5,Bd5b4,Bb4c2,Bc2d4][%mdl 32]} Qa5 {[%emt 0:09:23]} 19. Nc2 {[%emt 0:05:43]} Rad8 {[%emt 0:02:50]} 20. Nd4 {[%emt 0:04:18]} Bc8 {[%emt 0:03:08]} 21. Rd2 {[%emt 0:13:05]} Rfe8 {[%emt 0:02:23]} 22. Red1 {[%emt 0:00:52]} Ng6 {[%emt 0:11:55]} 23. Ne2 {[%emt 0:01:27]} Be5 {[%emt 0:00:16]} 24. g3 {[%emt 0:01:01]} Bg7 {[%emt 0:03:58]} 25. Bxa7 {[%emt 0:14:11][%cal Be3a7,Ba7b8,Bb8d6][%mdl 32] Threatens to win with Bb6.} c5 {[%emt 0:01:34]} 26. Bb8 {[%emt 0:00:05]} Ne5 {[%emt 0:07:45]} 27. Bxd6 {[%emt 0:03:14] And now f4 would win.} Bf8 $2 {[%emt 0:00:19] [#] A mistake that costs the game.} (27... g4 $16 28. Bg2 gxf3 29. Bxf3 Nxf3+ 30. Qxf3 b5) 28. Bxe5 $1 {[%emt 0:00:57]} Rxd2 {[%emt 0:00:13]} 29. Bc3 {[%emt 0:00:07]} Qxc3 {[%emt 0:04:30]} 30. Nxc3 {[%emt 0:00:02]} Rxf2 {[%emt 0:00:05]} 31. Kxf2 {[%emt 0:00:03]} Bg7 {[%emt 0:00:01]} 32. Nb5 {[%emt 0:02:33]} Be6 {[%emt 0:00:57]} 33. Be2 {[%emt 0:04:06]} Kf8 {[%emt 0:04:05]} 34. Nc7 {[%emt 0:01:58]} Rb8 {[%emt 0:00:53]} 35. Nxe6+ {[%emt 0:01:31]} fxe6 $18 {[%emt 0:00:01][%mdl 4096] Endgame KRB-KRB} 36. Rd7 {[%emt 0:00:06]} e5 {[%emt 0:01:57] Prevents f4.} (36... Be5 $16 37. Ke3 Bd4+ 38. Kd2 Bg1) 37. Bf1 {[%emt 0:01:36]} Bf6 {[%emt 0:00:52]} 38. Ke2 {[%emt 0:00:21]} b6 {[%emt 0:00:41]} 39. Rc7 {[%emt 0:01:26]} Be7 {[%emt 0:02:42]} 40. Rc6 {[%emt 0:00:40]} Kg7 {[%emt 0:00:03]} 41. Bh3 {[%emt 0:00:10]} Rb7 {[%emt 0:00:15]} 42. Bc8 {[%emt 0:01:45]} Rb8 {[%emt 0:00:06]} 43. Ke3 {[%emt 0:03:06]} b5 {[%emt 0:02:37]} 44. cxb5 {[%emt 0:00:14]} Rxb5 {[%emt 0:00:02]} 45. Ba6 {[%emt 0:00:10]} Rb8 {[%emt 0:00:08]} 46. Bc4 {[%emt 0:00:05] White is clearly winning.} Bd8 {[%emt 0:00:32]} 47. Re6 {[%emt 0:00:15]} Bf6 {[%emt 0:00:05]} 48. a4 {[%emt 0:00:05]} Ra8 {[%emt 0:00:04]} 49. Bd5 {[%emt 0:00:13]} Ra7 {[%emt 0:00:09]} 50. Kd3 {[%emt 0:00:10]} h5 {[%emt 0:00:30]} 51. Kc4 {[%emt 0:00:34]} h4 {[%emt 0:00:03]} (51... Ra5 $142 52. Re8 Kh6) 52. Kxc5 {[%emt 0:00:30]} Rc7+ {[%emt 0:00:09]} 53. Rc6 {[%emt 0:00:17] Weighted Error Value: White=0.09 (flawless) /Black=0.26 (precise)} 1-0

[Event "Menorca Open-A 2022"]
[Site "Menorca"]
[Date "2022.04.24"]
[Round "7.3"]
[White "Martirosyan, Haik M."]
[Black "Aryan Chopra"]
[Result "1/2-1/2"]
[ECO "D75"]
[WhiteElo "2633"]
[BlackElo "2592"]
[Annotator "TA"]
[PlyCount "83"]
[EventDate "2022.04.20"]
[EventType "swiss"]
[EventCountry "ESP"]
[SourceTitle "playchess.com"]
[Source "ChessBase"]
[SourceQuality "1"]
[TimeControl "5400+30"]

{[%evp 21,83,0,1,0,0,0,10,11,11,-4,0,0,0,0,0,-7,-2,-33,50,37,49,43,54,51,60,40,47,26,18,19,19,15,14,14,33,4,21,21,21,22,34,25,20,21,20,19,20,19,26,16,53,13,16,13,13,13,13,0,18,8,8,8,10,0]} 1. d4 {[%emt 0:00:39]} Nf6 {[%emt 0:00:04]} 2. c4 {[%emt 0:00:18]} g6 {[%emt 0:00:04]} 3. Nf3 {[%emt 0:00:35]} Bg7 {[%emt 0:00:05]} 4. g3 {[%emt 0:00:09]} O-O {[%emt 0:00:10]} 5. Bg2 {[%emt 0:00:07]} c5 {[%emt 0:00:42]} 6. Nc3 {[%emt 0:02:47]} d5 {[%emt 0:00:28]} 7. cxd5 {[%emt 0:02:29]} Nxd5 {[%emt 0:00:09]} 8. O-O {[%emt 0:00:18]} cxd4 {[%emt 0:00:59]} 9. Nxd4 {[%emt 0:00:15]} Nxc3 {[%emt 0:00:37]} 10. bxc3 {[%emt 0:00:06]} Nc6 {[%emt 0:00:06]} 11. Be3 {[%emt 0:02:58]} Na5 {[%emt 0:00:32]} 12. Qd3 {[%emt 0:02:31] D75: Fianchetto Grünfeld: Main Line with 7...c5.} a6 {[%emt 0:02:55]} 13. Rac1 {[%emt 0:07:10]} Qc7 {[%emt 0:00:42]} 14. c4 {[%emt 0:03:31]} Rd8 {[%emt 0:03:53] [#] ...e5 is the strong threat.} 15. Qe4 $146 {[%emt 0:01:45]} ({Predecessor:} 15. Rfd1 Bd7 16. Qa3 Be8 17. c5 e5 18. Bd2 Nc4 19. Rxc4 Rxd4 20. Rxd4 exd4 21. Bf4 {½-½ (39) Bai,J (2594)-Zhao,J (2611) Hangzhou 2018}) 15... h6 {[%emt 0:29:38]} ({Resist} 15... Nxc4 16. Nb3 Be6 17. Bf4 $16) 16. c5 {[%emt 0:06:21]} e5 {[%emt 0:03:10]} 17. Nb3 {[%emt 0:00:52]} Nc6 {[%emt 0:02:43]} 18. Qh4 {[%emt 0:07:02]} g5 {[%emt 0:00:39]} 19. Qh5 {[%emt 0:02:31]} Qd7 {[%emt 0:08:40]} ({Black should play} 19... Bf5 $1 $15) 20. h4 $14 {[%emt 0:03:50]} Qg4 {[%emt 0:04:14]} 21. Qxg4 {[%emt 0:00:24]} Bxg4 {[%emt 0:00:04]} 22. hxg5 {[%emt 0:00:24]} hxg5 {[%emt 0:00:04]} 23. Bxg5 {[%emt 0:10:32]} f6 {[%emt 0:00:31]} 24. Be3 {[%emt 0:00:52]} Bxe2 {[%emt 0:00:25]} 25. Rfe1 {[%emt 0:00:04]} Bd3 {[%emt 0:05:45]} 26. Nd2 {[%emt 0:01:29]} Bf8 {[%emt 0:00:44]} 27. Rc3 {[%emt 0:02:15]} Rac8 {[%emt 0:04:49]} 28. Ne4 {[%emt 0:01:51]} (28. Rb3 $5 {[%cal Rb3b7]}) 28... Bxe4 {[%emt 0:01:50]} (28... Kg7 {with more complications.} 29. Nd6 Bxd6 30. cxd6 Rxd6 31. Bc5 Rd7) 29. Bxe4 {[%emt 0:00:07]} Nd4 {[%emt 0:00:07] Against Rb3} 30. Bxb7 {[%emt 0:01:52] A strong pair of Bishops.} Rxc5 {[%emt 0:00:09]} 31. Rxc5 {[%emt 0:00:53]} Bxc5 {[%emt 0:00:06]} 32. Kf1 {[%emt 0:00:13]} a5 {[%emt 0:01:42]} 33. Rc1 {[%emt 0:00:54]} Bb6 {[%emt 0:00:07]} 34. Be4 {[%emt 0:03:21]} Kf7 {[%emt 0:00:30]} 35. Rb1 {[%emt 0:00:29]} Rd6 {[%emt 0:00:42]} 36. a4 {[%emt 0:03:01]} (36. Kg2 $5 {[%cal Rf2f4]}) 36... Ke7 {[%emt 0:02:24] The position is equal.} 37. Kg2 {[%emt 0:04:17]} Bc5 {[%emt 0:01:27]} 38. Rc1 {[%emt 0:09:56]} Bb6 {[%emt 0:01:24]} 39. Rb1 {[%emt 0:01:40]} Bc5 {[%emt 0:00:05]} 40. Rb7+ {[%emt 0:10:37]} Rd7 {[%emt 0:00:10]} 41. Rxd7+ {[%emt 0:00:23]} Kxd7 {[%emt 0:00:02]} 42. Bxd4 {[%emt 0:04:35] Weighted Error Value: White=0.06 (flawless) /Black=0.08 (flawless)} 1/2-1/2

[Event "Menorca Open-A 2022"]
[Site "Menorca"]
[Date "2022.04.24"]
[Round "7.4"]
[White "Erigaisi Arjun"]
[Black "Sadhwani, Raunak"]
[Result "1/2-1/2"]
[ECO "E20"]
[WhiteElo "2675"]
[BlackElo "2628"]
[Annotator "TA"]
[PlyCount "46"]
[EventDate "2022.04.20"]
[EventType "swiss"]
[EventCountry "ESP"]
[SourceTitle "playchess.com"]
[Source "ChessBase"]
[SourceQuality "1"]
[TimeControl "5400+30"]

{[%evp 10,26,0,0,-2,0,0,0,-8,0,10,-6,-1,-10,18,-6,-7,-23,0]} 1. d4 {[%emt 0:12:04][%cal Bd2d4,Bd4d5][%mdl 32]} Nf6 {[%emt 0:00:03]} 2. c4 {[%emt 0:00:04]} e6 {[%emt 0:00:01]} 3. Nc3 {[%emt 0:00:04]} Bb4 {[%emt 0:00:03]} 4. f3 {[%emt 0:00:05]} c5 {[%emt 0:00:27]} 5. d5 {[%emt 0:00:05]} O-O {[%emt 0:00:23]} 6. e4 {[%emt 0:00:06]} b5 {[%emt 0:00:02] E20: Nimzo-Indian: 4 g3 and 4 f3.} 7. e5 {[%emt 0:00:08]} ({Don't play} 7. cxb5 exd5 8. exd5 Re8+ 9. Nge2 a6 $15) 7... Ne8 {[%emt 0:00:04]} ({Much less strong is} 7... exd5 8. exf6 d4 9. a3 $16) 8. f4 {[%emt 0:00:05]} exd5 {[%emt 0:00:23] The position is equal.} 9. cxd5 {[%emt 0:00:05]} d6 {[%emt 0:00:07]} 10. Nf3 {[%emt 0:00:56]} c4 {[%emt 0:00:23]} 11. a4 {[%emt 0:00:44]} Nd7 {[%emt 0:00:19]} 12. axb5 {[%emt 0:06:08]} dxe5 {[%emt 0:00:40] Black wants to play ...Nd6.} 13. Bxc4 {[%emt 0:03:15]} Nd6 {[%emt 0:00:19] [#] Not much happened in this game.  Weighted Error Value: White=0.05 (flawless) /Black=0.05 (flawless)} (13... Qc7 $5 {[%cal Rc7c4]} 14. Be2 e4 $11) {Predecessor:} 14. Be2 $146 Qb6 15. Bd2 Bxc3 16. Bxc3 Ne4 17. Rf1 Nxc3 18. bxc3 Qc5 19. c4 Re8 20. Rf2 e4 21. Nd4 e3 22. Rf3 Nb6 23. Nc6 Re4 {½-½ (23) Piesik,P (2403)-Kozak,A (2503) Slovakia 2020} 1/2-1/2

[Event "Menorca Open-A 2022"]
[Site "Menorca"]
[Date "2022.04.24"]
[Round "7.5"]
[White "Alonso Rosell, Alvar"]
[Black "Santos Latasa, Jaime"]
[Result "0-1"]
[ECO "D35"]
[WhiteElo "2564"]
[BlackElo "2656"]
[Annotator "TA"]
[PlyCount "106"]
[EventDate "2022.04.20"]
[EventType "swiss"]
[EventCountry "ESP"]
[SourceTitle "playchess.com"]
[Source "ChessBase"]
[SourceQuality "1"]
[TimeControl "5400+30"]

{[%evp 12,106,19,26,25,38,37,32,31,20,25,31,35,12,17,8,24,0,45,-23,-9,-16,0,0,0,0,0,0,0,0,0,-39,-32,-60,-62,-86,-81,-186,-177,-274,-268,-276,-255,-307,-313,-411,-393,-376,-241,-235,-237,-391,-379,-301,-283,-294,-262,-275,-278,-252,-231,-220,-124,-129,-114,-124,-127,-237,-270,-268,-251,-263,-262,-262,-238,-239,-236,-233,-227,-216,-216,-274,-262,-241,-241,-298,-294,-293,-290,-381,-381,-356,-327,-372,-360,-508,-500]} 1. d4 {[%emt 0:03:40]} d5 {[%emt 0:00:08]} 2. c4 {[%emt 0:00:14]} e6 {[%emt 0:00:03]} 3. Nc3 {[%emt 0:00:41]} Nf6 {[%emt 0:00:37]} 4. cxd5 {[%emt 0:00:28]} exd5 {[%emt 0:00:46]} 5. Bg5 {[%emt 0:00:06]} Bb4 {[%emt 0:00:04]} 6. e3 {[%emt 0:00:41]} h6 {[%emt 0:00:13]} 7. Bh4 {[%emt 0:00:04]} g5 {[%emt 0:00:04] D35: Queen's Gambit Declined: Exchange Variation.} 8. Bg3 {[%emt 0:00:04]} h5 $5 {[%emt 0:00:06][%mdl 4] Leaves trodden paths.} 9. h4 {[%emt 0:04:05] And now Qb3 would win.} Ne4 {[%emt 0:00:30] White is slightly better.} 10. Nge2 {[%emt 0:00:05]} Nxg3 {[%emt 0:00:51]} 11. Nxg3 {[%emt 0:01:37]} gxh4 {[%emt 0:00:04]} 12. Nxh5 {[%emt 0:00:07]} c6 $1 {[%emt 0:00:05]} 13. a3 {[%emt 0:00:07]} Bd6 {[%emt 0:00:52] [#]} 14. f4 $146 {[%emt 0:38:59] Inhibits Qg5.} ({Predecessor:} 14. g4 hxg3 15. Qf3 Be6 16. e4 gxf2+ 17. Kxf2 Nd7 18. exd5 Qb6 19. dxe6 fxe6 20. Nf6+ {½-½ (38) Rada,H (2416)-Costachi,M (2239) ICCF email 2017}) 14... Nd7 {[%emt 0:00:56]} 15. Ng7+ {[%emt 0:26:30] Pair of Knights!} (15. g4 $14) 15... Kf8 $11 {[%emt 0:01:21]} 16. Nf5 {[%emt 0:00:03]} Nb6 {[%emt 0:07:13]} 17. Nxd6 {[%emt 0:05:39]} Qxd6 {[%emt 0:00:48]} 18. Qf3 {[%emt 0:00:07]} Qg6 {[%emt 0:02:56] Against g4} 19. Qf2 {[%emt 0:00:05]} Qf6 {[%emt 0:00:05]} 20. Bd3 {[%emt 0:03:39]} Bg4 {[%emt 0:01:04]} 21. Kd2 {[%emt 0:01:13]} (21. f5 $5 {[%cal Re1d2]}) 21... Bf5 {[%emt 0:04:04] Threatens to win with ...Bxd3.} 22. b3 {[%emt 0:02:40]} Bxd3 {[%emt 0:00:58]} 23. Kxd3 {[%emt 0:00:02]} Ke7 {[%emt 0:05:57]} 24. g4 {[%emt 0:07:55] [#]} (24. Rh3 $17 {is a better defense.}) 24... Rag8 $1 $19 {[%emt 0:04:43]} 25. f5 {[%emt 0:03:32]} (25. Qe2 $142) 25... Rxg4 {[%emt 0:01:13]} 26. Raf1 {[%emt 0:00:02]} Nc8 {[%emt 0:06:17]} 27. Qf3 {[%emt 0:00:17]} Qg5 {[%emt 0:01:12]} 28. Nxd5+ {[%emt 0:00:52]} cxd5 {[%emt 0:00:36]} 29. Qxd5 {[%emt 0:00:07]} Rd8 {[%emt 0:03:35]} 30. f6+ {[%emt 0:00:55]} Ke8 {[%emt 0:00:08]} 31. Qxb7 {[%emt 0:00:25]} (31. Qxg5 Rxg5 32. Rxh4) 31... Qg6+ {[%emt 0:02:38]} 32. Kc3 {[%emt 0:00:19]} Qe4 {[%emt 0:00:11]} 33. Qxe4+ {[%emt 0:01:08]} Rxe4 {[%emt 0:00:08]} 34. Kd3 {[%emt 0:00:27]} Nd6 {[%emt 0:01:16]} 35. Rfg1 {[%emt 0:00:33]} Kd7 {[%emt 0:00:21] White must now prevent ...Rde8.} 36. Rg5 {[%emt 0:00:14]} Re6 {[%emt 0:09:56]} ({Black should play} 36... Rde8 $19 37. Rh3 Ke6) 37. Rxh4 {[%emt 0:00:42]} Rde8 {[%emt 0:00:32]} (37... Rxf6 38. Ra5 $15) 38. Rh3 {[%emt 0:00:35] [#]} Ne4 $1 {[%emt 0:00:25]} (38... Rxf6 39. Ra5 $15) 39. Rf5 {[%emt 0:00:26]} (39. Rd5+ $17 {was the only defense.} Kc6 40. Rf5) 39... Rc6 {[%emt 0:00:22]} ({Not} 39... Nxf6 40. Rhf3 Ke7 41. e4 $15) (39... Rxf6 40. Rhh5 $15) 40. Rd5+ {[%emt 0:00:32]} Kc7 {[%emt 0:01:26] Hoping for ...Nf2+.} 41. Rh7 {[%emt 0:00:26]} Rc3+ {[%emt 0:00:50]} (41... Rxf6 42. Ra5 a6 43. Rhh5 $17) ({Worse is} 41... Nxf6 42. Rxf7+ Kb6 43. Re5 Rxe5 44. dxe5 $11) 42. Ke2 {[%emt 0:00:02] [#]} Rxe3+ $3 {[%emt 0:01:17][%mdl 512]} 43. Kxe3 {[%emt 0:00:01]} Nxf6+ {[%emt 0:00:09]} 44. Kd3 {[%emt 0:00:02]} Nxh7 {[%emt 0:00:11][%mdl 4096] Endgame KRN-KR} 45. Ra5 {[%emt 0:00:02]} Kb6 {[%emt 0:00:55]} 46. Rh5 {[%emt 0:00:22]} Nf8 {[%emt 0:01:31]} 47. Rf5 {[%emt 0:00:19]} Re7 {[%emt 0:00:20]} 48. Rf6+ {[%emt 0:00:03]} Kb7 {[%emt 0:00:19]} 49. a4 {[%emt 0:01:19]} Ne6 {[%emt 0:02:47]} 50. d5 {[%emt 0:00:24]} Nc5+ {[%emt 0:00:09]} 51. Kc4 {[%emt 0:00:24]} Nd7 {[%emt 0:00:06]} 52. Rf5 {[%emt 0:02:11]} f6 {[%emt 0:01:01]} 53. a5 {[%emt 0:00:51]} (53. Kd4 {was necessary.}) 53... Re4+ {[%emt 0:42:41] Weighted Error Value: White=0.30/Black=0.08 (flawless)} 0-1

[Event "Menorca Open-A 2022"]
[Site "Menorca"]
[Date "2022.04.24"]
[Round "7.6"]
[White "Nihal Sarin"]
[Black "Batsiashvili, Nino"]
[Result "1-0"]
[ECO "D02"]
[WhiteElo "2648"]
[BlackElo "2463"]
[Annotator "TA"]
[PlyCount "103"]
[EventDate "2022.04.20"]
[EventType "swiss"]
[EventCountry "ESP"]
[SourceTitle "playchess.com"]
[Source "ChessBase"]
[SourceQuality "1"]
[TimeControl "5400+30"]

{[%evp 9,103,4,4,4,5,0,9,5,0,-4,0,0,0,0,0,0,0,12,14,12,16,14,12,0,6,12,21,15,13,23,37,41,27,8,35,31,38,37,57,49,64,38,58,54,56,56,59,61,56,47,110,95,108,46,256,233,225,215,293,286,335,335,334,273,286,223,223,206,264,245,279,277,339,330,335,293,297,281,520,529,585,573,915,518,1072,815,1362,842,1301,1296,6099,5978,29963,29964,29985,29986]} 1. d4 {[%emt 0:01:18]} Nf6 {[%emt 0:00:07]} 2. Nf3 {[%emt 0:00:07]} d5 {[%emt 0:00:26]} 3. c3 {[%emt 0:00:04]} e6 {[%emt 0:02:31]} 4. Bf4 {[%emt 0:00:18]} Bd6 {[%emt 0:00:07]} 5. e3 {[%emt 0:00:04]} Bxf4 {[%emt 0:02:40]} 6. exf4 {[%emt 0:00:01] D02: 1 d4 d5 2 Nf3 sidelines, including 2...Nf6 3 g3 and 2...Nf6 3 Bf4.} b6 {[%emt 0:00:20]} 7. Nbd2 {[%emt 0:01:38]} O-O {[%emt 0:00:13]} 8. h4 {[%emt 0:01:23][%cal Bh2h4,Bh4h5,Bh5h6][%mdl 32] The position is equal.} c5 {[%emt 0:01:39]} 9. h5 {[%emt 0:03:07]} Qd6 {[%emt 0:05:56]} 10. h6 {[%emt 0:05:21] Hoping for hxg7.} g6 {[%emt 0:01:05]} 11. g3 {[%emt 0:00:07] [#]} cxd4 $146 {[%emt 0:08:00]} ({Predecessor:} 11... Nc6 12. a3 a5 13. Qa4 Bd7 14. Qd1 Rab8 15. Bd3 b5 16. Ne5 cxd4 17. Nxc6 Bxc6 18. cxd4 {0-1 (67) Yurtseven,M (2400)-Yilmazyerli,M (2413) Antalya 2021}) 12. Nxd4 {[%emt 0:04:21]} e5 {[%emt 0:00:32]} 13. fxe5 {[%emt 0:08:07]} Qxe5+ {[%emt 0:00:02]} 14. Be2 {[%emt 0:00:01]} Ba6 {[%emt 0:01:25]} 15. Kf1 {[%emt 0:04:41]} Bxe2+ {[%emt 0:00:19]} (15... Re8 {with more complications.} 16. N2f3 Qe7 17. Bb5 Bxb5+ 18. Nxb5 a6) 16. Qxe2 {[%emt 0:10:50]} Qxe2+ {[%emt 0:02:17]} 17. Nxe2 {[%emt 0:00:10]} Nc6 {[%emt 0:00:05]} 18. Nf3 {[%emt 0:00:01]} Rfe8 {[%emt 0:02:33]} 19. Rd1 {[%emt 0:00:18]} Ne5 {[%emt 0:08:26]} 20. Nxe5 {[%emt 0:00:40]} Rxe5 {[%emt 0:00:02]} 21. f3 {[%emt 0:04:32]} Rae8 {[%emt 0:10:46]} 22. Nd4 {[%emt 0:07:46]} Nh5 {[%emt 0:01:31]} 23. Kf2 {[%emt 0:01:39]} Kf8 {[%emt 0:00:37]} 24. Rd2 {[%emt 0:00:33]} a5 {[%emt 0:02:26]} 25. Rhd1 {[%emt 0:06:45]} f5 {[%emt 0:10:47]} 26. Re2 {[%emt 0:02:56]} Nf6 {[%emt 0:01:58]} 27. Rxe5 {[%emt 0:03:49]} Rxe5 $14 {[%emt 0:00:01][%mdl 4096] Endgame KRN-KRN} 28. a4 {[%emt 0:00:00]} Re8 {[%emt 0:03:20]} 29. Ne2 {[%emt 0:04:44]} Rb8 {[%emt 0:13:35]} (29... Rd8 $14) 30. Nf4 $16 {[%emt 0:03:36]} b5 {[%emt 0:01:31] [#]} 31. Ne6+ {[%emt 0:00:08]} ({Much worse is} 31. Nxd5 Rd8 32. Ne3 (32. Nxf6 $2 Rxd1 33. Nxh7+ Kg8 $19) 32... Rxd1 33. Nxd1 bxa4 $11) (31. b3 $1 $16) 31... Ke7 $2 {[%emt 0:02:11] A mistake that costs the game.} (31... Kf7 $1 $14 32. Ng5+ Ke7) 32. Nd4 $18 {[%emt 0:00:06] Threatens to win with Nc6+.} Kd6 {[%emt 0:02:05] Against Nc6} 33. axb5 {[%emt 0:01:07]} Ng8 {[%emt 0:00:51]} 34. Re1 {[%emt 0:07:03]} Nxh6 {[%emt 0:00:52]} 35. Rh1 {[%emt 0:02:56]} Nf7 {[%emt 0:00:09]} 36. Rxh7 {[%emt 0:00:02]} Ne5 {[%emt 0:00:22]} 37. Ke2 {[%emt 0:00:02]} Nc4 {[%emt 0:02:07]} 38. Ra7 {[%emt 0:09:20] Strongly threatening b3.} Re8+ {[%emt 0:04:07] [#]} 39. Kf1 $1 {[%emt 0:00:20]} Nxb2 {[%emt 0:08:23]} 40. Rxa5 {[%emt 0:00:12]} Nd1 {[%emt 0:01:28]} 41. Ra6+ {[%emt 0:01:03]} Kd7 {[%emt 0:00:05]} 42. Rxg6 {[%emt 0:01:20]} Nxc3 {[%emt 0:00:02]} 43. b6 {[%emt 0:00:01]} Ra8 $2 {[%emt 0:02:51]} (43... Na4 44. Nxf5 Rb8 45. Rd6+ Ke8) 44. Nxf5 {[%emt 0:01:50]} Nb5 {[%emt 0:00:51]} 45. g4 {[%emt 0:03:34]} Rb8 {[%emt 0:00:39]} 46. Ke2 {[%emt 0:00:17] aiming for Kd3.} Ra8 {[%emt 0:00:20]} (46... Nc3+ $142 47. Ke3 Na4) 47. Kf2 {[%emt 0:01:37]} Rb8 {[%emt 0:00:25]} 48. Ke3 {[%emt 0:00:49]} Re8+ {[%emt 0:00:27]} 49. Kd3 {[%emt 0:00:08]} Rb8 {[%emt 0:00:31]} 50. Nd4 {[%emt 0:01:26]} Na3 {[%emt 0:00:35]} 51. Nc6 {[%emt 0:00:05]} Rb7 {[%emt 0:00:23]} 52. Ne5+ {[%emt 0:00:06] Weighted Error Value: White=0.18 (very precise) /Black=0.33} 1-0

[Event "Menorca Open-A 2022"]
[Site "Menorca"]
[Date "2022.04.24"]
[Round "7.7"]
[White "Santos Ruiz, Miguel"]
[Black "Iermito, Sebastian"]
[Result "1/2-1/2"]
[ECO "B41"]
[WhiteElo "2597"]
[BlackElo "2525"]
[Annotator "TA"]
[PlyCount "29"]
[EventDate "2022.04.20"]
[EventType "swiss"]
[EventCountry "ESP"]
[SourceTitle "playchess.com"]
[Source "ChessBase"]
[SourceQuality "1"]
[TimeControl "5400+30"]

{[%evp 11,29,30,20,22,39,42,36,10,13,14,14,12,35,0,5,0,17,18,10,7]} 1. e4 {[%emt 0:00:04]} c5 {[%emt 0:00:03]} 2. Nf3 {[%emt 0:00:03]} e6 {[%emt 0:00:03]} 3. d4 {[%emt 0:00:03]} cxd4 {[%emt 0:00:02]} 4. Nxd4 {[%emt 0:00:03]} a6 {[%emt 0:00:03]} 5. c4 {[%emt 0:00:11]} Nf6 {[%emt 0:00:04][%cal Bg8f6,Bf6e8,Be8d6][%mdl 32]} 6. Nc3 {[%emt 0:00:03]} Bb4 {[%emt 0:00:09]} 7. Qd3 {[%emt 0:00:26] B41: Sicilian: Kan Variation: 5 c4.} O-O {[%emt 0:00:27]} 8. e5 {[%emt 0:02:01] 8.e5 scores better than 8.Be2.} Ne8 {[%emt 0:00:03]} ({Weaker is} 8... Ng4 9. Qg3 Qa5 10. Bf4 $16) 9. a3 {[%emt 0:00:51] White is slightly better.} Bxc3+ {[%emt 0:00:55]} 10. Qxc3 {[%emt 0:00:11]} d6 {[%emt 0:00:04]} 11. exd6 {[%emt 0:03:39]} Nxd6 {[%emt 0:00:14]} 12. Be2 {[%emt 0:00:14]} e5 {[%emt 0:00:29] [#] The position is equal.} 13. Nf3 $146 {[%emt 0:01:55]} ({Predecessor:} 13. Nc2 Nc6 14. Be3 Nf5 15. Rd1 Qe7 16. O-O Nxe3 17. Qxe3 Bf5 18. Bd3 Qe6 19. Bxf5 Qxf5 {½-½ (40) Bernotas,A (2408)-Quparadze,G (2495) Batumi 2018}) 13... Nc6 {[%emt 0:07:03]} 14. O-O {[%emt 0:05:19]} Bg4 {[%emt 0:05:50][%cal Oc6d4]} 15. Re1 {[%emt 0:07:42] Weighted Error Value: White=0.08 (flawless) /Black=0.04 (flawless)} 1/2-1/2